fUST/lending_fUST_20250929
["ID","MTS","AMOUNT","RATE_DAILY","PERIOD"]
[388339646,1759105843390,-1052.34,0.00027397,7]
[388339647,1759105843399,-1132.63,0.00027397,7]
[388339648,1759105843408,-871.47,0.00027397,7]
[388339649,1759105843416,-480.0,0.00027397,7]
[388339650,1759105843425,-480.0,0.00027397,7]
[388339651,1759105843434,-480.0,0.00027397,7]
[388339652,1759105843443,-1087.75,0.00027397,7]
[388339653,1759105843452,-690.79,0.00027397,7]
[388339654,1759105843461,-480.0,0.00027397,7]
[388339655,1759105843470,-480.0,0.00027397,7]
[388339656,1759105843478,-738.38,0.00027397,7]
[388339657,1759105843487,-480.0,0.00027397,7]
[388339658,1759105843496,-835.83,0.00027397,7]
[388339659,1759105843504,-480.0,0.00027397,7]
[388339660,1759105843513,-664.76,0.00027397,7]
[388339661,1759105843522,-480.0,0.00027397,7]
[388339662,1759105843531,-987.98,0.00027397,7]
[388339663,1759105843540,-480.0,0.00027397,7]
[388339664,1759105843549,-480.0,0.00027397,7]
[388339665,1759105843558,-575.03,0.00027397,7]
[388339666,1759105843567,-480.0,0.00027397,7]
[388339667,1759105843575,-480.0,0.00027397,7]
[388339668,1759105843584,-528.91,0.00027397,7]
[388339669,1759105843593,-689.35,0.00027397,7]
[388339670,1759105843602,-480.0,0.00027397,7]
[388339671,1759105843612,-639.9,0.00027397,7]
[388339672,1759105843622,-770.58,0.00027397,7]
[388339673,1759105843630,-480.0,0.00027397,7]
[388339674,1759105843639,-480.0,0.00027397,7]
[388339675,1759105843648,-480.0,0.00027397,7]
[388339676,1759105843657,-480.0,0.00027397,7]
[388339677,1759105843667,-480.0,0.00027397,7]
[388339678,1759105843676,-488.26,0.00027397,7]
[388339679,1759105843686,-892.47,0.00027397,7]
[388339680,1759105843695,-761.34,0.00027397,7]
[388339681,1759105843704,-3288.31,0.00027397,7]
[388339682,1759105843713,-1407.8,0.00027397,7]
[388339683,1759105843737,-202.47388,0.00027397,7]
[388339684,1759105843752,-480.0,0.00027397,7]
[388339685,1759105843761,-480.0,0.00027397,7]
[388339686,1759105843770,-202.47388,0.00027397,7]
[388339687,1759105843781,-202.47388,0.00027397,7]
[388339688,1759105843790,-480.0,0.00027397,7]
[388339689,1759105843798,-202.47388,0.00027397,7]
[388339690,1759105843807,-1884.04,0.00027397,7]
[388339691,1759105843816,-645.01,0.00027397,7]
[388339692,1759105843825,-151.0,0.00027397,7]
[388339693,1759105843834,-480.0,0.00027397,7]
[388339694,1759105843842,-3064.92,0.00027397,7]
[388339695,1759105843851,-480.0,0.00027397,7]
[388339696,1759105843861,-500.0,0.00027397,7]
[388339697,1759105843870,-480.0,0.00027397,7]
[388339698,1759105843879,-191.58,0.00027397,7]
[388339699,1759105843932,-480.0,0.00027397,7]
[388339700,1759105843942,-846.75,0.00027397,7]
[388339701,1759105843950,-576.94,0.00027397,7]
[388339702,1759105843960,-835.43,0.00027397,7]
[388339703,1759105843968,-1704.89,0.00027397,7]
[388339704,1759105843977,-480.0,0.00027397,7]
[388339705,1759105843986,-480.0,0.00027397,7]
[388339706,1759105843995,-480.0,0.00027397,7]
[388339707,1759105844005,-906.61,0.00027397,7]
[388339708,1759105844014,-628.95,0.00027397,7]
[388339709,1759105844023,-480.0,0.00027397,7]
[388339710,1759105844031,-480.0,0.00027397,7]
[388339711,1759105844041,-480.0,0.00027397,7]
[388339712,1759105844050,-2829.7,0.00027397,7]
[388339713,1759105844060,-1513.591181,0.00027397,7]
[388339714,1759105844069,-1513.591181,0.00027397,7]
[388339715,1759105844078,-480.0,0.00027397,7]
[388339716,1759105844088,-151.0,0.00027397,7]
[388339717,1759105844097,-1513.591181,0.00027397,7]
[388339718,1759105844107,-1513.591181,0.00027397,7]
[388339719,1759105844119,-151.0,0.00027397,7]
[388339720,1759105844128,-151.0,0.00027397,7]
[388339721,1759105844137,-619.35,0.00027397,7]
[388339722,1759105844146,-266.005067,0.00027397,7]
[388339723,1759105844156,-480.0,0.00027397,7]
[388339724,1759105844166,-1463.01,0.00027397,7]
[388339725,1759105844175,-621.97,0.00027397,7]
[388339726,1759105844184,-480.0,0.00027397,7]
[388339727,1759105844193,-589.55796307,0.00027397,7]
[388339728,1759105844201,-4584.3,0.00027397,7]
[388339729,1759105844213,-2945.26,0.00027397,7]
[388339730,1759105844222,-480.0,0.00027397,7]
[388339731,1759105844230,-678.12,0.00027397,7]
[388339732,1759105844239,-480.0,0.00027397,7]
[388339733,1759105844249,-151.0,0.00027397,7]
[388339734,1759105844259,-480.0,0.00027397,7]
[388339735,1759105844268,-151.0,0.00027397,7]
[388339736,1759105844278,-2675.78,0.00027397,7]
[388339737,1759105844288,-650.93,0.00027397,7]
[388339738,1759105844296,-3244.1,0.00027397,7]
[388339739,1759105844305,-1714.743485,0.00027397,7]
[388339740,1759105844314,-721.94,0.00027397,7]
[388339741,1759105844323,-480.0,0.00027397,7]
[388339742,1759105844332,-1714.743485,0.00027397,7]
[388339743,1759105844341,-152.309656,0.00027397,7]
[388339744,1759105844350,-753.96,0.00027397,7]
[388339745,1759105844359,-1809.44,0.00027397,7]
[388339746,1759105844369,-1714.743485,0.00027397,7]
[388339747,1759105844378,-480.0,0.00027397,7]
[388339748,1759105844387,-151.537383,0.00027397,7]
[388339749,1759105844397,-151.0,0.00027397,7]
[388339750,1759105844406,-1714.743485,0.00027397,7]
[388339751,1759105844416,-796.9,0.00027397,7]
[388339752,1759105844428,-151.0,0.00027397,7]
[388339753,1759105844437,-723.68,0.00027397,7]
[388339754,1759105844447,-930.65,0.00027397,7]
[388339755,1759105844456,-6208.15,0.00027397,7]
[388339756,1759105844465,-1079.58,0.00027397,7]
[388339757,1759105844474,-1409.77,0.00027397,7]
[388339758,1759105844484,-151.0,0.00027397,7]
[388339759,1759105844493,-873.76,0.00027397,7]
[388339760,1759105844502,-151.0,0.00027397,7]
[388339761,1759105844511,-151.0,0.00027397,7]
[388339762,1759105844521,-151.0,0.00027397,7]
[388339763,1759105844530,-480.0,0.00027397,7]
[388339764,1759105844539,-480.0,0.00027397,7]
[388339765,1759105844548,-151.0,0.00027397,7]
[388339766,1759105844557,-151.0,0.00027397,7]
[388339767,1759105844566,-480.0,0.00027397,7]
[388339768,1759105844575,-480.0,0.00027397,7]
[388339769,1759105844585,-151.0,0.00027397,7]
[388339770,1759105844593,-480.0,0.00027397,7]
[388339771,1759105844603,-480.0,0.00027397,7]
[388339772,1759105844613,-480.0,0.00027397,7]
[388339773,1759105844622,-151.0,0.00027397,7]
[388339774,1759105844631,-151.0,0.00027397,7]
[388339775,1759105844641,-6683.88,0.00027397,7]
[388339776,1759105844650,-530.42,0.00027397,7]
[388339777,1759105844659,-1075.35,0.00027397,7]
[388339778,1759105844667,-480.0,0.00027397,7]
[388339779,1759105844677,-726.57,0.00027397,7]
[388339780,1759105844686,-1270.22,0.00027397,7]
[388339781,1759105844694,-1171.99,0.00027397,7]
[388339782,1759105844704,-617.49,0.00027397,7]
[388339783,1759105844713,-799.68,0.00027397,7]
[388339784,1759105844722,-954.25,0.00027397,7]
[388339785,1759105844731,-480.0,0.00027397,7]
[388339786,1759105844740,-3545.73,0.00027397,7]
[388339787,1759105844750,-1291.38,0.00027397,7]
[388339788,1759105844759,-480.0,0.00027397,7]
[388339789,1759105844767,-1364.51,0.00027397,7]
[388339790,1759105844776,-696.65,0.00027397,7]
[388339791,1759105844785,-1124.82,0.00027397,7]
[388339792,1759105844794,-662.89,0.00027397,7]
[388339793,1759105844803,-480.0,0.00027397,7]
[388339794,1759105844812,-1050.67,0.00027397,7]
[388339795,1759105844821,-1632.31,0.00027397,7]
[388339796,1759105844830,-480.0,0.00027397,7]
[388339797,1759105844839,-3095.1,0.00027397,7]
[388339798,1759105844848,-1561.27,0.00027397,7]
[388339799,1759105844858,-480.0,0.00027397,7]
[388339800,1759105844866,-818.31,0.00027397,7]
[388339801,1759105844875,-151.0,0.00027397,7]
[388339802,1759105844885,-977.92,0.00027397,7]
[388339803,1759105844894,-179.71061139,0.00027397,7]
[388339804,1759105844903,-151.0,0.00027397,7]
[388339805,1759105844912,-480.0,0.00027397,7]
[388339806,1759105844921,-1031.88,0.00027397,7]
[388339807,1759105844930,-486.86,0.00027397,7]
[388339808,1759105844939,-613.53,0.00027397,7]
[388339809,1759105844948,-480.0,0.00027397,7]
[388339810,1759105844957,-480.0,0.00027397,7]
[388339811,1759105844966,-646.4,0.00027397,7]
[388339812,1759105844975,-480.0,0.00027397,7]
[388339813,1759105844984,-2183.76,0.00027397,7]
[388339814,1759105844994,-3321.81,0.00027397,7]
[388339815,1759105845002,-822.64,0.00027397,7]
[388339816,1759105845011,-480.0,0.00027397,7]
[388339817,1759105845022,-664.95,0.00027397,7]
[388339818,1759105845031,-480.0,0.00027397,7]
[388339819,1759105845040,-480.0,0.00027397,7]
[388339820,1759105845049,-480.0,0.00027397,7]
[388339821,1759105845058,-480.0,0.00027397,7]
[388339822,1759105845067,-827.56,0.00027397,7]
[388339823,1759105845076,-426.28693132,0.00027397,7]
[388339824,1759105845085,-480.0,0.00027397,7]
[388339825,1759105845095,-1335.59,0.00027397,7]
[388339826,1759105845103,-1527.3,0.00027397,7]
[388339827,1759105845112,-2904.39,0.00027397,7]
[388339828,1759105845121,-480.0,0.00027397,7]
[388339829,1759105845131,-595.6,0.00027397,7]
[388339830,1759105845140,-480.0,0.00027397,7]
[388339831,1759105845150,-480.0,0.00027397,7]
[388339832,1759105845159,-811.55,0.00027397,7]
[388339833,1759105845168,-764.03,0.00027397,7]
[388339834,1759105845178,-296.52372095,0.00027397,7]
[388339835,1759105845187,-598.08,0.00027397,7]
[388339836,1759105845196,-6559.49,0.00027397,7]
[388339837,1759105845205,-151.0,0.00027397,7]
[388339838,1759105845219,-480.0,0.00027397,7]
[388339839,1759105845228,-151.480582,0.00027397,7]
[388339840,1759105845238,-1374.93,0.00027397,7]
[388339841,1759105845247,-151.0,0.00027397,7]
[388339842,1759105845257,-151.0,0.00027397,7]
[388339843,1759105845266,-860.64,0.00027397,7]
[388339844,1759105845275,-1617.01,0.00027397,7]
[388339845,1759105845288,-480.0,0.00027397,7]
[388339846,1759105845298,-151.0,0.00027397,7]
[388339847,1759105845307,-2220.39,0.00027397,7]
[388339848,1759105845316,-1658.81,0.00027397,7]
[388339849,1759105845325,-151.0,0.00027397,7]
[388339850,1759105845334,-480.0,0.00027397,7]
[388339851,1759105845343,-714.51,0.00027397,7]
[388339852,1759105845352,-1369.86,0.00027397,7]
[388339853,1759105845361,-151.0,0.00027397,7]
[388339854,1759105845370,-3344.77,0.00027397,7]
[388339855,1759105845379,-480.0,0.00027397,7]
[388339856,1759105845388,-151.0,0.00027397,7]
[388339857,1759105845397,-480.0,0.00027397,7]
[388339858,1759105845406,-2947.99,0.00027397,7]
[388339859,1759105845415,-3086.23,0.00027397,7]
[388339860,1759105845424,-1140.61,0.00027397,7]
[388339861,1759105845435,-480.0,0.00027397,7]
[388339862,1759105845444,-480.0,0.00027397,7]
[388339863,1759105845453,-151.0,0.00027397,7]
[388339864,1759105845462,-151.0,0.00027397,7]
[388339865,1759105845471,-882.47,0.00027397,7]
[388339866,1759105845481,-1106.98,0.00027397,7]
[388339867,1759105845491,-480.0,0.00027397,7]
[388339868,1759105845500,-480.0,0.00027397,7]
[388339869,1759105845510,-617.75,0.00027397,7]
[388339870,1759105845519,-760.43,0.00027397,7]
[388339871,1759105845528,-491.37,0.00027397,7]
[388339872,1759105845537,-480.0,0.00027397,7]
[388339873,1759105845547,-1044.28,0.00027397,7]
[388339874,1759105845556,-582.62,0.00027397,7]
[388339875,1759105845565,-1716.63,0.00027397,7]
[388339876,1759105845574,-801.68,0.00027397,7]
[388339877,1759105845583,-480.0,0.00027397,7]
[388339878,1759105845592,-480.0,0.00027397,7]
[388339879,1759105845601,-14196.19,0.00027397,7]
[388339880,1759105845610,-480.0,0.00027397,7]
[388339882,1759105845619,-6293.73,0.00027397,7]
[388339883,1759105845628,-151.0,0.00027397,7]
[388339885,1759105845638,-151.0,0.00027397,7]
[388339887,1759105845647,-289.29636368,0.00027397,7]
[388339888,1759105845657,-582.08,0.00027397,7]
[388339889,1759105845666,-480.0,0.00027397,7]
[388339891,1759105845675,-4714.21,0.00027397,3]
[388339892,1759105845685,-480.0,0.00027397,7]
[388339893,1759105845694,-750.98,0.00027397,7]
[388339895,1759105845704,-480.0,0.00027397,7]
[388339897,1759105845714,-480.0,0.00027397,7]
[388339900,1759105845723,-616.11,0.00027397,7]
[388339902,1759105845733,-480.0,0.00027397,7]
[388339904,1759105845743,-589.54,0.00027397,7]
[388339906,1759105845753,-735.2,0.00027397,7]
[388339908,1759105845764,-735.2,0.00027397,7]
[388339910,1759105845773,-480.0,0.00027397,7]
[388339912,1759105845783,-501.61,0.00027397,7]
[388339914,1759105845792,-557.87774717,0.00027397,7]
[388339916,1759105845802,-4620.59,0.000274,2]
[388339918,1759105845812,-1680.0,0.00027417,2]
[388339920,1759105845821,-1680.0,0.00027425,2]
[388339922,1759105845830,-613.0,0.0002746,2]
[388339924,1759105845839,-218.04,0.00027464,2]
[388339926,1759105845849,-613.0,0.00027479,7]
[388339928,1759105845859,-5000.0,0.00027481,2]
[388339930,1759105845869,-151.0,0.000275,19]
[388339932,1759105845877,-151.0,0.00027558,2]
[388339934,1759105845887,-500.0,0.00027565,2]
[388339936,1759105845896,-500.0,0.0002757,2]
[388339937,1759105845905,-500.0,0.0002757,2]
[388339938,1759105845915,-500.0,0.0002757,2]
[388339939,1759105845924,-557.0,0.0002757,2]
[388339940,1759105845933,-500.0,0.0002757,2]
[388339941,1759105845943,-500.0,0.0002757,2]
[388339943,1759105845952,-151.0,0.0002757,2]
[388339944,1759105845961,-500.0,0.0002757,2]
[388339945,1759105845970,-500.0,0.0002757,2]
[388339946,1759105845980,-1046.0,0.00027583,2]
[388339947,1759105845989,-500.0,0.00027583,2]
[388339948,1759105845999,-623.82475928,0.00027583,2]
[388339949,1759105846008,-200.0,0.0002767,10]
[388339951,1759105846018,-202.76462638,0.0002767,10]
[388339953,1759105846027,-151.0,0.00027671,7]
[388339955,1759105846037,-480.0,0.00027671,7]
[388339957,1759105846046,-480.0,0.00027671,7]
[388339959,1759105846057,-572.1,0.00027671,7]
[388339960,1759105846067,-480.0,0.00027671,7]
[388339961,1759105846076,-480.0,0.00027671,7]
[388339962,1759105846086,-480.0,0.00027671,7]
[388339963,1759105846097,-480.0,0.00027671,7]
[388339964,1759105846107,-675.64,0.00027671,7]
[388339965,1759105846117,-480.0,0.00027671,7]
[388339966,1759105846127,-480.0,0.00027671,7]
[388339968,1759105846136,-502.91,0.00027671,7]
[388339969,1759105846145,-480.0,0.00027671,7]
[388339971,1759105846154,-778.4,0.00027671,7]
[388339972,1759105846165,-745.97,0.00027671,7]
[388339973,1759105846174,-576.33,0.00027671,7]
[388339974,1759105846183,-400.0,0.00027671,7]
[388339975,1759105846194,-480.0,0.00027671,7]
[388339976,1759105846203,-480.0,0.00027671,7]
[388339977,1759105846217,-480.0,0.00027671,7]
[388339978,1759105846227,-480.0,0.00027671,7]
[388339979,1759105846236,-480.0,0.00027671,7]
[388339980,1759105846245,-480.0,0.00027671,7]
[388339981,1759105846257,-1118.82,0.00027671,7]
[388339982,1759105846269,-515.61,0.00027671,7]
[388339983,1759105846278,-480.0,0.00027671,7]
[388339984,1759105846290,-640.88,0.00027671,7]
[388339985,1759105846300,-480.0,0.00027671,7]
[388339986,1759105846309,-480.0,0.00027671,7]
[388339987,1759105846319,-151.0,0.00027671,7]
[388339988,1759105846328,-480.0,0.00027671,7]
[388339989,1759105846338,-862.15,0.00027671,7]
[388339990,1759105846347,-480.0,0.00027671,7]
[388339991,1759105846357,-480.0,0.00027671,7]
[388339992,1759105846367,-480.0,0.00027671,7]
[388339994,1759105846377,-480.0,0.00027671,7]
[388339995,1759105846386,-605.47,0.00027671,7]
[388339996,1759105846396,-151.0,0.00027671,7]
[388339997,1759105846406,-596.42,0.00027671,7]
[388339998,1759105846416,-1027.46,0.00027671,7]
[388339999,1759105846426,-153.53801909,0.00027671,7]
[388340000,1759105846435,-480.0,0.00027671,7]
[388340001,1759105846445,-480.0,0.00027671,7]
[388340002,1759105846454,-315.22172663,0.00027671,7]
[388340003,1759105846463,-400.0,0.00027671,7]
[388340004,1759105846473,-480.0,0.00027671,7]
[388340005,1759105846483,-480.0,0.00027671,7]
[388340006,1759105846492,-480.0,0.00027671,7]
[388340007,1759105846501,-1713.44,0.00027671,7]
[388340008,1759105846510,-151.0,0.00027671,7]
[388340009,1759105846520,-487.0,0.00027671,7]
[388340010,1759105846529,-480.0,0.00027671,7]
[388340011,1759105846538,-480.0,0.00027671,7]
[388340012,1759105846548,-480.0,0.00027671,7]
[388340013,1759105846558,-681.72,0.00027671,7]
[388340014,1759105846567,-480.0,0.00027671,7]
[388340015,1759105846577,-480.0,0.00027671,7]
[388340016,1759105846586,-672.86,0.00027671,7]
[388340017,1759105846595,-514.4,0.00027671,7]
[388340018,1759105846605,-681.24,0.00027671,7]
[388340019,1759105846615,-480.0,0.00027671,7]
[388340020,1759105846624,-480.0,0.00027671,7]
[388340021,1759105846634,-480.0,0.00027671,7]
[388340022,1759105846643,-480.0,0.00027671,7]
[388340023,1759105846653,-480.0,0.00027671,7]
[388340024,1759105846662,-480.0,0.00027671,7]
[388340025,1759105846671,-200.0,0.00027671,7]
[388340026,1759105846680,-480.0,0.00027671,7]
[388340027,1759105846689,-151.0,0.00027671,7]
[388340028,1759105846699,-480.0,0.00027671,7]
[388340030,1759105846708,-649.55,0.00027671,7]
[388340032,1759105846717,-480.0,0.00027671,7]
[388340033,1759105846727,-480.0,0.00027671,7]
[388340034,1759105846736,-151.0,0.00027671,7]
[388340035,1759105846746,-641.2,0.00027671,7]
[388340036,1759105846757,-579.62,0.00027671,7]
[388340037,1759105846767,-151.0,0.00027671,7]
[388340038,1759105846776,-480.0,0.00027671,7]
[388340039,1759105846785,-480.0,0.00027671,7]
[388340040,1759105846795,-706.75,0.00027671,7]
[388340041,1759105846804,-515.56,0.00027671,7]
[388340042,1759105846814,-1685.04,0.00027671,7]
[388340044,1759105846823,-151.0,0.00027671,7]
[388340045,1759105846832,-151.0,0.00027671,7]
[388340046,1759105846841,-480.0,0.00027671,7]
[388340047,1759105846851,-151.0,0.00027671,7]
[388340048,1759105846861,-480.0,0.00027671,7]
[388340049,1759105846871,-526.39098978,0.00027671,7]
[388340050,1759105846881,-480.0,0.00027671,7]
[388340051,1759105846890,-151.0,0.00027671,7]
[388340052,1759105846900,-480.0,0.00027671,7]
[388340053,1759105846910,-723.2,0.00027671,7]
[388340054,1759105846919,-480.0,0.00027671,7]
[388340055,1759105846930,-480.0,0.00027671,7]
[388340056,1759105846940,-731.51,0.00027671,7]
[388340057,1759105846950,-480.0,0.00027671,7]
[388340058,1759105846959,-151.0,0.00027671,7]
[388340059,1759105846969,-546.43,0.00027671,7]
[388340060,1759105846978,-409.48019778,0.00027671,7]
[388340061,1759105846989,-480.0,0.00027671,7]
[388340062,1759105846999,-480.0,0.00027671,7]
[388340063,1759105847009,-151.0,0.00027671,7]
[388340064,1759105847019,-1993.37,0.00027671,7]
[388340065,1759105847028,-616.6,0.00027671,7]
[388340066,1759105847037,-618.42,0.00027671,7]
[388340067,1759105847047,-154.566649,0.00027671,7]
[388340068,1759105847057,-480.0,0.00027671,7]
[388340069,1759105847067,-480.0,0.00027671,7]
[388340070,1759105847077,-151.0,0.00027671,7]
[388340071,1759105847087,-594.57,0.00027671,7]
[388340072,1759105847096,-480.0,0.00027671,7]
[388340073,1759105847105,-480.0,0.00027671,7]
[388340074,1759105847115,-480.0,0.00027671,7]
[388340075,1759105847125,-480.0,0.00027671,7]
[388340076,1759105847134,-480.0,0.00027671,7]
[388340077,1759105847145,-623.72,0.00027671,7]
[388340078,1759105847156,-709.81,0.00027671,7]
[388340079,1759105847165,-749.65,0.00027671,7]
[388340080,1759105847175,-480.0,0.00027671,7]
[388340081,1759105847184,-720.75,0.00027671,7]
[388340082,1759105847193,-480.0,0.00027671,7]
[388340083,1759105847203,-661.05,0.00027671,7]
[388340084,1759105847215,-480.0,0.00027671,7]
[388340085,1759105847224,-699.22,0.00027671,7]
[388340086,1759105847233,-480.0,0.00027671,7]
[388340087,1759105847242,-466.90245423,0.00027671,7]
[388340088,1759105847251,-621.62545626,0.00027671,3]
[388340089,1759105847263,-151.0,0.00027671,7]
[388340090,1759105847272,-520.96,0.00027671,7]
[388340091,1759105847283,-643.57,0.00027671,7]
[388340092,1759105847295,-500.0,0.00027671,7]
[388340093,1759105847304,-151.0,0.00027671,7]
[388340094,1759105847314,-480.0,0.00027671,7]
[388340095,1759105847323,-480.0,0.00027671,7]
[388340096,1759105847333,-216.278107,0.00027671,7]
[388340097,1759105847342,-480.0,0.00027671,7]
[388340098,1759105847351,-480.0,0.00027671,7]
[388340099,1759105847361,-496.37,0.00027671,7]
[388340100,1759105847370,-151.0,0.00027671,7]
[388340101,1759105847379,-151.0,0.00027671,7]
[388340102,1759105847388,-480.0,0.00027671,7]
[388340103,1759105847397,-151.0,0.00027671,7]
[388340104,1759105847407,-480.0,0.00027671,7]
[388340105,1759105847417,-480.0,0.00027671,7]
[388340106,1759105847426,-207.93473,0.00027671,7]
[388340107,1759105847436,-480.0,0.00027671,7]
[388340108,1759105847445,-480.0,0.00027671,7]
[388340109,1759105847454,-207.93473,0.00027671,7]
[388340110,1759105847466,-207.93473,0.00027671,7]
[388340111,1759105847476,-480.0,0.00027671,7]
[388340112,1759105847487,-207.93473,0.00027671,7]
[388340113,1759105847497,-480.0,0.00027671,7]
[388340114,1759105847507,-480.0,0.00027671,7]
[388340115,1759105847517,-480.0,0.00027671,7]
[388340116,1759105847527,-480.0,0.00027671,7]
[388340117,1759105847537,-480.0,0.00027671,7]
[388340118,1759105847546,-480.0,0.00027671,7]
[388340119,1759105847556,-151.0,0.00027671,7]
[388340120,1759105847566,-807.61,0.00027671,7]
[388340121,1759105847576,-151.0,0.00027671,7]
[388340122,1759105847585,-151.0,0.00027671,7]
[388340123,1759105847595,-151.0,0.00027671,7]
[388340124,1759105847604,-480.0,0.00027671,7]
[388340125,1759105847614,-259.934401,0.00027671,7]
[388340126,1759105847623,-480.0,0.00027671,7]
[388340127,1759105847633,-480.0,0.00027671,7]
[388340128,1759105847653,-480.0,0.00027671,7]
[388340129,1759105847662,-480.0,0.00027671,7]
[388340130,1759105847672,-480.0,0.00027671,7]
[388340131,1759105847681,-151.0,0.00027671,7]
[388340132,1759105847691,-480.0,0.00027671,7]
[388340133,1759105847700,-480.0,0.00027671,7]
[388340134,1759105847710,-480.0,0.00027671,7]
[388340135,1759105847719,-480.0,0.00027671,7]
[388340136,1759105847729,-480.0,0.00027671,7]
[388340137,1759105847738,-151.0,0.00027671,7]
[388340138,1759105847747,-151.0,0.00027671,7]
[388340139,1759105847756,-568.15,0.00027671,7]
[388340140,1759105847766,-872.64,0.00027671,7]
[388340141,1759105847775,-480.0,0.00027671,7]
[388340142,1759105847786,-151.0,0.00027671,7]
[388340143,1759105847795,-151.0,0.00027671,7]
[388340144,1759105847805,-480.0,0.00027671,7]
[388340145,1759105847974,-151.0,0.00027671,7]
[388340146,1759105847984,-663.06,0.00027671,7]
[388340147,1759105847994,-480.0,0.00027671,7]
[388340148,1759105848004,-243.324309,0.00027671,7]
[388340149,1759105848014,-607.02,0.00027671,7]
[388340150,1759105848024,-538.9,0.00027671,7]
[388340151,1759105848033,-732.17,0.00027671,7]
[388340152,1759105848042,-577.08,0.00027671,7]
[388340153,1759105848051,-480.0,0.00027671,7]
[388340154,1759105848062,-480.0,0.00027671,7]
[388340155,1759105848072,-480.0,0.00027671,7]
[388340156,1759105848082,-480.0,0.00027671,7]
[388340157,1759105848091,-480.0,0.00027671,7]
[388340158,1759105848101,-480.0,0.00027671,7]
[388340159,1759105848110,-264.347158,0.00027671,7]
[388340160,1759105848119,-152.152954,0.00027671,7]
[388340161,1759105848129,-480.0,0.00027671,7]
[388340162,1759105848138,-264.347158,0.00027671,7]
[388340163,1759105848148,-750.96,0.00027671,7]
[388340164,1759105848158,-264.347158,0.00027671,7]
[388340165,1759105848168,-264.347158,0.00027671,7]
[388340166,1759105848177,-737.78,0.00027671,7]
[388340167,1759105848187,-480.0,0.00027671,7]
[388340168,1759105848197,-910.49,0.00027671,7]
[388340169,1759105848206,-595.31,0.00027671,7]
[388340170,1759105848219,-480.0,0.00027671,7]
[388340171,1759105848229,-793.75,0.00027671,7]
[388340173,1759105848239,-480.0,0.00027671,7]
[388340174,1759105848248,-500.0,0.00027671,7]
[388340176,1759105848259,-151.0,0.00027671,7]
[388340177,1759105848268,-151.0,0.00027671,7]
[388340178,1759105848277,-688.99,0.00027671,7]
[388340179,1759105848288,-151.0,0.00027671,7]
[388340180,1759105848298,-2261.36,0.00027671,7]
[388340182,1759105848308,-480.0,0.00027671,7]
[388340183,1759105848318,-521.77,0.00027671,7]
[388340185,1759105848328,-487.78,0.00027671,7]
[388340186,1759105848337,-480.0,0.00027671,7]
[388340187,1759105848346,-152.360311,0.00027671,7]